Cogmind - Beta 15 @@@ ROGUE MODE // 2025.07.18 @ 18:58:14 Player: EX-OCT Result: Destroyed by M1-QGM(R) with Subdweller Laser Performance ------------- Evolutions (0) 0 Regions Visited (2) 400 Robots Destroyed (35) 175 Value Destroyed (726) 726 Prototype IDs (0) 0 Alien Tech Used (0) 0 Bonus (0) 0 TOTAL SCORE: 1301 Bonus ------- None Cogmind --------- Core Integrity 0/250 Matter 270/300 Energy 250/250 System Corruption 2% Temperature Cool (10) Movement Treading (160) Location -10/Subcaves Parts ------- > --- POWER (1) -------- Ion Engine (fused) > --- PROPULSION (2) --- Light Treads Light Treads > --- UTILITY (2) ------ Large Storage Unit Makeshift Light Armor Plating > --- WEAPON (2) ------- Beam Cannon Battle Cannon > --- INVENTORY (15) --- Light Ion Engine Subdweller Power Source Light Treads Light Treads Subdweller Monowheel Flight Unit Flight Unit Flight Unit Flight Unit Flight Unit Heat Sink Small Storage Unit Small Battery (100) Hacking Suite Subdweller Shrapnel Launcher Peak State ------------ > --- POWER ------------ Ion Engine > --- PROPULSION ------- Light Treads Light Treads > --- UTILITY ---------- Large Storage Unit Makeshift Light Armor Plating > --- WEAPON ----------- Beam Cannon Battle Cannon > --- INVENTORY -------- Light Ion Engine Subdweller Power Source Light Treads Light Treads Subdweller Monowheel Flight Unit Flight Unit Flight Unit Flight Unit Flight Unit Heat Sink Small Storage Unit Small Battery Hacking Suite Subdweller Shrapnel Launcher [Rating: 13] Favorites ----------- Power Ion Engine Engine Ion Engine Propulsion Light Treads Treads Light Treads Utility Large Storage Unit Device Seismic Detector Storage Large Storage Unit Protection Makeshift Light Armor Plating Weapon Assault Rifle Energy Cannon Beam Cannon Ballistic Gun Assault Rifle Ballistic Cannon Battle Cannon Launcher Grenade Launcher Build | -11 -10 -10 ------- Run | Yrd Mat Sub Slots Evolved . | . . . Power . | . . . Propulsion . | . . . Utility . | . . . Weapon . | . . . Parts Attached 17 | 7 4 6 Power 2 | 1 1 . Engine 2 | 1 1 . Core . | . . . Reactor . | . . . Propulsion 4 | 2 2 . Treads 4 | 2 2 . Leg . | . . . Wheel . | . . . Hover . | . . . Flight . | . . . Utility 4 | 2 1 1 Device 1 | 1 . . Storage 2 | 1 1 . Processor . | . . . Hackware . | . . . Protection 1 | . . 1 Artifact . | . . . Weapon 7 | 2 . 5 Energy Gun . | . . . Energy Cannon 2 | . . 2 Ballistic Gun 3 | 2 . 1 Ballistic Cannon 1 | . . 1 Launcher 1 | . . 1 Special Weapon . | . . . Impact Weapon . | . . . Slashing Weapon . | . . . Piercing Weapon . | . . . Special Melee Weapon . | . . . Unidentified Prototypes . | . . . Parts Lost 1 | . 1 . Power 1 | . 1 . Propulsion . | . . . Utility . | . . . Weapon . | . . . Highest Loss Streak 1 | . 1 . To Critical Strikes . | . . . Average Backups 11 | 1 10 15 Power . | . . 1 Propulsion 5 | . 4 7 Utility 3 | . 3 4 Weapon 1 | . 2 1 Tool/Special . | . . . Unused Backups 14 | . 2 12 Power 2 | . . 2 Propulsion 6 | . . 6 Utility 5 | . 2 3 Weapon 1 | . . 1 Tool/Special . | . . . Average Slot Usage (%) 99 | . 99 99 Engine 13 | . 13 14 Treads 28 | . 28 28 Device 8 | . 14 2 Storage 14 | . 14 14 Protection 5 | . . 11 Energy Cannon 7 | . . 17 Ballistic Gun 19 | . 27 8 Peak Build Rating 13 | 7 8 13 Average Rating 9 | 5 7 11 On Entrance 5 | . 7 8 Naked Turns . | . . . Heaviest Build 40 | 13 30 40 Greatest Support 40 | 40 40 40 Greatest Overweight (x) . | . . . Average Overweight (x) . | . . . Largest Inventory Capacity 15 | 8 15 15 Average Capacity 13 | 6 13 15 Most Carried 15 | 2 15 15 Average Carried 12 | 1 10 14 Final Capacity 15 | 8 15 15 Final Carried 15 | 2 15 15 Class Distribution -------------------- 63% | Mutant 36% | Scavenger-Mutant Dominant Class ---------------- Scavenger-Mutant | -10/Materials Mutant | -10/Subcaves Resources | -11 -10 -10 ----------- Run | Yrd Mat Sub Matter Collected 956 | 330 447 179 Remotely . | . . . Salvage Created 1160 | 105 705 350 Parts 85 | 6 45 34 Haulers Intercepted 2 | . 2 . Recyclers Shooed . | . . . Parts Field Recycled . | . . . Retrieved Matter . | . . . Parts Self-Destructed 8 | . . 8 Prevented . | . . . Kills | -11 -10 -10 ------- Run | Yrd Mat Sub Combat Hostiles Destroyed 24 | . 13 11 Guns 17 | . 13 4 Cannons 4 | . . 4 AOE 3 | . . 3 Classes Destroyed 10 | 2 6 2 Worker 1 | . 1 . Tunneler 2 | 2 . . Hauler 2 | . 2 . Recycler 3 | 1 2 . Operator 2 | . 2 . Watcher 1 | . 1 . Swarmer 10 | . 6 4 Grunt 7 | . 7 . Artisan 1 | . . 1 Subdweller 7 | . . 7 Best Kill Streak 3 | 3 3 3 Combat Bots Only 3 | . 2 3 Max Kills in Single Turn 3 | 1 1 3 Gunslinging . | . . . Exploded 3 | . . 3 Melee . | . . . Uniques/NPCs Destroyed . | . . . Combat | -11 -10 -10 -------- Run | Yrd Mat Sub Hostile Shots Fired 121 | . 64 57 Missed 31 | . 17 14 Hits 90 | . 47 43 Projectile 90 | . 47 43 Critical Strikes 1 | . 1 . Damage Taken 1152 | . 484 668 Core 267 | . 97 170 Absorbed by Shields . | . . . Regen/Repaired (Parts) 99 | . 99 . Core Remaining (%) 100 | 100 . . Volleys Fired 120 | 10 66 44 Largest 2 | 2 2 2 Hottest 140 | 40 40 140 Shots Fired 223 | 20 133 70 Gun 172 | 20 133 19 Cannon 48 | . . 48 Launcher 3 | . . 3 Special . | . . . Kinetic 178 | 20 133 25 Thermal 42 | . . 42 Explosive 3 | . . 3 Electromagnetic . | . . . Robot Hit Streak 12 | 3 10 12 Robot Miss Streak 6 | 2 6 6 Penetration Max . | . . . Secondary Targets . | . . . Shots Hit Robots 127 | 11 76 40 Core Hits 54 | 4 32 18 Critical Kills 2 | . 2 . Critical Parts Destroyed 1 | 1 . . Critical Strikes 3 | 1 2 . Destroy 3 | 1 2 . Melee Attacks . | . . . Impact . | . . . Slashing . | . . . Piercing . | . . . Sneak Attacks . | . . . Combat Hostiles . | . . . Follow-up Attacks . | . . . Damage Inflicted 1904 | 143 968 793 Guns 1244 | 143 966 135 Cannons 495 | . . 495 Explosions 163 | . . 163 Melee . | . . . Ramming 2 | . 2 . Kinetic 1335 | 143 966 226 Thermal 404 | . . 404 Explosive 163 | . . 163 Electromagnetic . | . . . Impact . | . . . Slashing . | . . . Piercing . | . . . Highest Corruption 2 | . 2 2 Average Corruption 1 | . 1 2 Corruption Purged . | . . . Corruption Blocked . | . . . Effects 26 | . 9 17 Message Errors 6 | . 2 4 Matter Fused 3 | . 1 2 Heat Flow Errors 4 | . 1 3 Energy Discharges 5 | . 3 2 Parts Fused 1 | . 1 . Data Loss (minor) 5 | . . 5 Misfires 1 | . 1 . Alerts 1 | . . 1 Overload Shots . | . . . Overflow Damage . | . . . Projectiles . | . . . Explosions . | . . . Melee . | . . . Knockbacks . | . . . Impact . | . . . Kinetic . | . . . Secondary . | . . . Self-Inflicted Damage . | . . . Shots . | . . . Rammed 1 | . 1 . Targets Rammed 1 | . 1 . Kicked . | . . . Crushed . | . . . Highest Temperature 272 | . 272 217 Average Temperature 53 | . 95 40 Received Heat Transfer 336 | . 186 150 Siege Activations . | . . . Martial Activations . | . . . Shielding Activations . | . . . Robots Disrupted . | . . . Combat Hostiles . | . . . Robots Corrupted . | . . . Combat Hostiles . | . . . Parts Fried . | . . . Impact Corruptions . | . . . Robots Melted . | . . . Combat Hostiles . | . . . Parts Melted 2 | . . 2 Heat Transferred 777 | . . 777 Parts Sabotaged . | . . . Parts Stolen . | . . . Parts Stripped . | . . . Power Chain Reactions . | . . . Alert | -11 -10 -10 ------- Run | Yrd Mat Sub Maximum Alert Level . | . . . Low Security (%) 100 | 100 100 . Level 1 . | . . . Level 2 . | . . . Level 3 . | . . . Level 4 . | . . . Level 5 . | . . . High Security . | . . . Max Security . | . . . Peak Influence 151 | 10 151 . Initial . | . . . Average 62 | . 68 . Influence Increases 661 | 15 491 155 Destroy 0b10 Robot/C 340 | . 260 80 Destroy 0b10 Robot/NC 55 | 15 40 . Destroy Leader 56 | . 56 . Successful Hack 29 | . 29 . Select Force Hacks 30 | . 30 . Disable Machine 15 | . 15 . Destroy Structure 1 | . 1 . Lose Combat Pursuer 135 | . 60 75 Influence Decreases 661 | 15 491 155 Time Decay 651 | 15 481 155 Lost Part 10 | . 10 . Squads Dispatched 3 | . 3 . Investigation 2 | . 2 . Extermination . | . . . Reinforcement 1 | . 1 . Assault . | . . . Garrison . | . . . Intercept . | . . . Searches Triggered . | . . . Construction Impeded . | . . . Haulers Reinforced . | . . . Active Scanning Responses . | . . . Cargo Convoy Interrupts . | . . . Stealth | -11 -10 -10 --------- Run | Yrd Mat Sub Distress Signals 2 | . 2 . Communications Jammed . | . . . Distress Signals . | . . . Times Spotted 49 | . 31 18 Peak Tracking Total 6 | . 4 6 Tactical Retreats 4 | . 2 2 Traps | -11 -10 -10 ------- Run | Yrd Mat Sub Traps Triggered 1 | . 1 . Indirectly . | . . . Trap Hack Attempts . | . . . Triggered . | . . . Disarmed . | . . . Reprogrammed . | . . . Reused . | . . . Traps Extracted . | . . . Installed . | . . . Triggered . | . . . Machines | -11 -10 -10 ---------- Run | Yrd Mat Sub Machines Disabled 1 | . 1 . Max in Single Turn 1 | . 1 . Machines Repaired . | . . . Machines Dismantled . | . . . Machines Sabotaged . | . . . Overloaded Fab Kills . | . . . Hacking | -11 -10 -10 --------- Run | Yrd Mat Sub Machines Accessed 10 | . 9 1 Terminals 7 | . 7 . Fabricators . | . . . Repair Stations 1 | . 1 . Recycling Units 1 | . 1 . Scanalyzers . | . . . Garrison Access . | . . . Total Hacks 32 | . 27 5 Successful 19 | . 14 5 Failed 13 | . 13 . Catastrophic 1 | . 1 . Database Lockouts . | . . . Manual 26 | . 26 . Terminals 24 | . 24 . Fabricators . | . . . Repair Stations 2 | . 2 . Recycling Units 1 | . 1 . Scanalyzers . | . . . Garrison Access . | . . . Terminal Hacks 6 | . 1 5 Record 5 | . . 5 Terminal Index 1 | . 1 . Fabricator Hacks . | . . . Repair Station Hacks 2 | . 2 . Scan Component 1 | . 1 . Repair 1 | . 1 . Recycling Unit Hacks . | . . . Scanalyzer . | . . . Garrison Access Hacks . | . . . Unauthorized Hacks 11 | . 11 . Terminals 10 | . 10 . Botnet 3 | . 3 . Skim 7 | . 7 . Fabricators . | . . . Repair Stations . | . . . Recycling Units 1 | . 1 . Tunnel 1 | . 1 . Scanalyzers . | . . . Garrison Access . | . . . Data Cores Recovered 1 | . 1 . Used . | . . . Hacking Detections 8 | . 8 . Full Trace Events 2 | . 2 . Feedback Events 1 | . 1 . Corruption 1 | . 1 . Feedback Blocked . | . . . Robot Schematics Acquired . | . . . Robots Built . | . . . Authchips . | . . . Time . | . . . Total Robot Build Rating . | . . . Part Schematics Acquired . | . . . Parts Built . | . . . Authchips . | . . . Time . | . . . Total Part Build Rating . | . . . Parts Repaired 1 | . 1 . Time 26 | . 26 . Parts Recycled . | . . . Recycled Matter . | . . . Retrieved Matter . | . . . Retrieved Components . | . . . Parts Scanalyzed . | . . . Part Schematics Acquired . | . . . Parts Damaged . | . . . Bothacking | -11 -10 -10 ------------ Run | Yrd Mat Sub Used RIF Installer . | . . . Robots Hacked . | . . . Non-combat . | . . . Combat . | . . . Robot Hacks Applied . | . . . Relay Couplers Released . | . . . Fabnet Peak Effective % . | . . . Robots Rewired . | . . . Allies Hacked . | . . . Hacks Repelled . | . . . Allies | -11 -10 -10 -------- Run | Yrd Mat Sub Total Allies . | . . . Largest Group . | . . . Highest-Rated Group . | . . . Highest-Rated Ally . | . . . Total Orders . | . . . Ally Attacks . | . . . Total Damage . | . . . Kills . | . . . Allies Corrupted . | . . . Allies Melted . | . . . Intel | -11 -10 -10 ------- Run | Yrd Mat Sub Active Infowar (turns) 1567 | 37 1349 181 Seismic 1567 | 37 1349 181 Robot Analysis Total . | . . . Derelict Logs Recovered 1 | . . 1 Drone Launches . | . . . Drone Recoveries . | . . . Exploration | -11 -10 -10 ------------- Run | Yrd Mat Sub Turns Passed 2531 | 122 1349 1060 Spaces Moved 1282 | 52 663 567 Core 2 | 2 . . Treads 1280 | 50 663 567 Legs . | . . . Wheels . | . . . Hover . | . . . Flight . | . . . Fastest Speed 50 | 50 160 160 Average Speed 159 | 155 160 160 Slowest Speed 160 | 160 160 160 Overloaded Moves . | . . . Propulsion Burnouts . | . . . Robots Hopped . | . . . Potential Cave-ins . | . . . Cave-ins Triggered . | . . . Exploration Rate (%) 44 | 4 94 35 Regions Visited 2 Branch Regions 1 Pre-discovered Areas 2 | . 2 . Known Exits Taken . | . . . Unknown Exits Taken 2 | 1 1 . Scrap Searched 1 | . . 1 Spaces Dug . | . . . Terrain Destroyed 14 | . . 14 Melee . | . . . Projectile 1 | . . 1 AOE 13 | . . 13 Terrain Rammed . | . . . Walls Destroyed . | . . . Machines Disabled . | . . . Actions | -11 -10 -10 --------- Run | Yrd Mat Sub Total 1539 | 70 819 650 Wait 90 | . 69 21 Move 1280 | 51 662 567 Hop . | . . . Pick Up 18 | 2 13 3 Fast Attach 13 | 7 2 4 Attach . | . . . Detach 1 | . . 1 Swap 6 | . 3 3 Drop 10 | . 3 7 Fire 120 | 10 66 44 Melee . | . . . Ram . | . . . Kick . | . . . Crush 1 | . 1 . Escape Stasis . | . . . Rewire . | . . . Trap . | . . . Miscellaneous . | . . . Route ------- -11/Scrapyard -10/Materials (discovered 5 exits: [*Mat x3] / *Min / *Sub) -10/Subcaves (discovered 3 exits: *Mat x2 / Rec) History --------- Turn | Location | Event 6 | -11/Scrapyard | Discovered new exit (range 16) 123 | -11/Scrapyard | Entered Materials 295 | -10/Materials | Discovered new exit (range 14) 314 | -10/Materials | Build established: Mutant 491 | -10/Materials | Discovered new exit (range 3) 928 | -10/Materials | Discovered new exit (range 11) 1021 | -10/Materials | Learned location of 1 exit from Recycling 1022 | -10/Materials | Build established: Scavenger-Mutant 1155 | -10/Materials | Learned location of 2 exits from Subcaves 1205 | -10/Materials | Discovered new exit (range 15) 1206 | -10/Materials | Loaded intel: 1 repair station location 1245 | -10/Materials | Learned 4 Subcaves zone layouts 1276 | -10/Materials | Learned location of Subcaves (-10) 1315 | -10/Materials | Learned location of 1 exit from Storage 1364 | -10/Materials | Identified exit to Mines 1410 | -10/Materials | Repaired Assault Rifle 1422 | -10/Materials | Learned 4 Materials zone layouts 1459 | -10/Materials | Discovered new exit (range 9) 1472 | -10/Materials | Entered Subcaves 1473 | -10/Subcaves | Identified exit to Materials 1473 | -10/Subcaves | Identified exit to Recycling 1506 | -10/Subcaves | A swath of the cavern ceiling suddenly collapsed 1637 | -10/Subcaves | Shifting Twisted Machinery released Mak. Light Armor Plating 1646 | -10/Subcaves | Shifting Twisted Machinery released Sub. Beam Cannon 1930 | -10/Subcaves | Core integrity fell below 50% 1957 | -10/Subcaves | Build established: Mutant 2056 | -10/Subcaves | Core integrity fell below 20% 2106 | -10/Subcaves | Shifting Twisted Machinery released Sub. Monowheel 2109 | -10/Subcaves | Shifting Twisted Machinery released Sub. Shrapnel Launcher 2192 | -10/Subcaves | A swath of the cavern ceiling suddenly collapsed 2418 | -10/Subcaves | Discovered exit to Materials (range 9) 2421 | -10/Subcaves | Visited Clippyterm 2426 | -10/Subcaves | Learned Research machine intel 2443 | -10/Subcaves | Learned Materials stockpile data 2492 | -10/Subcaves | A Subdweller sparked back to life 2492 | -10/Subcaves | A Subdweller sparked back to life 2532 | -10/Subcaves | Destroyed by M1-QGM(R) with Subdweller Laser Last Messages --------------- installing Trojan(Botnet) on at least one or two Terminals to improve your odds of success elsewhere. >>Record! "Letterhead" It looks like you're writing a letter, sorry I don't know how to do that. 02443_ Acquired derelict log, extracted data. Data stored: Materials stockpile data. 02471_ System corrupted: IFF burst signal emitted. 02492_ OO-ZF4(R) creaks and sparks as it begins to move. 02492_ GO-U3S(R) creaks and sparks as it begins to move. 02504_ LU-CJF(R) destroyed. 02525_ GO-U3S(R) affixes Scrap Shield Fragment to Scrap Shield. 02527_ Subatomizers dissect the Disposable Heat Sink. 02530_ GO-U3S(R) destroyed. Map ----- +----------------------------------------------------+ | ????????????????????????????????????????????????? | | ????????????????????????????????????????????????? | | ????????????????????????????????????????????????? | | ????????????????????????????????????????????????? | | ????????????????????????????????????????????????? | | ????????????????????????????????????????????????? | | ????????????????????????????????????????????????? | | ????????????????????????????????????????????????? | | ????????????????????????????????????????????????? | | ????????????????????????????????????????????????? | | ????????????????????????????????????????????????? | | ????????????????????????????????????????????????? | | ????????????????????????????????????????????????? | | ????????????????????????????????????????????????? | | ????????????????????????????????????????????????? | | ????????????????????????????????????????????????? | | ????????????????????????????????????????????????? | | ????????????????????????????????????????????????? | | ????????????????????????????????????????????????? | | ????????????????""""????????????????????????????? | | ????????????????"" "????????????????????????????? | | ????????????????#"""?########???????????????????? | | ????????? ?????##"""##"" #####???????????????? | | ???????? ???#;&%%=""""" #???????????????? | | # #### ####%!%!! "" #???????????????? | | #?# ## ![&& R @ #???????????????? | | ##?# ! R### #???????????????? | | # #??### ##?# #???????????????? | | #####????### #?## ## ##???????????????? | | ???????????## #?# ##??#????????????????? | | ????????????## ### #???????????????????? | | ?????????????## ## ####?????????????????? | | ??????????????# ## ##????????????????? | | ??????????????## ### ##???????????????? | | ???????????????####?## #???????????????? | | ?????????????????????####### ##???????????????? | | ???????????????????????????# #????????????????? | | ???????????????????????????# ##???????????????? | | ???????????????????????????# #???????????????? | | ???????????????????????????## #???????????????? | | ???????????????????????????# #???????????????? | | ???????????????????????????# ##??????????????? | | ???????????????????????????##"" "#?????????????? | | ????????????????????????????#& &" #?????????????? | | ???????????????????????????## #?????????????? | | ???????????????????????????# ! " #?????????????? | | ???????????????????????????# " " #?????????????? | | ??????????#######??????????# " ##?????????????? | | ??????????#"""""#?????????## #??????????????? | | ??????????#""X""#?????????# ####??????????????? | +----------------------------------------------------+ Best States ------------- Heat Dissipation 25 Energy Generation 10 Energy Capacity 250 Matter Stores 300 Matter Capacity 300 Sight Range 16 Terrain Scan Density 10 Armor Coverage 100 Evasion (%) 40 Recoil Reduction 2 Item Schematics ----------------- None Robot Schematics ------------------ None Fabricated ------------ Nothing Repaired ---------- Assault Rifle | 1% | -10/Materials Alien Tech Used ----------------- None Achievements -------------- None Challenges ------------ None Game ------ Seed SmallExplosiveNanoactuators Manual? 0 Play Time 00:17:26 Cumulative 346.2 hours Start 2025.07.18 @ 18:41:12 End 2025.07.18 @ 18:58:14 Sessions 1 Manual Loads 0 Difficulty Rogue Special Mode None Game No. 166 Rogue 166 Adventurer 0 Explorer 0 Win Type - Total 23 Types 8/1/5/1/5/1/0/1/0/1 Lore% 90 Gallery% 79 Achievement% 76 Wizard Run 0 Options --------- Layout 1 ASCII 0 Keyboard 0 Movement Numpad Keybinds 0 Fullscreen 1 Font 24/Smallcaps Map View 50x35 Zoom Use 0% Tactical HUD 1 Map Filters NONE Filters NONE Steam 1 RUN: fdb10bc0-07b8-4803-aeeb-864d77509f1e